bitfinex/quotes_ETHUSD_20260214
["timestamp","ask_amount","ask_price","bid_price","bid_amount"]
[1771084188550,0.45465697,2087.7,2087.1,1.19779691]
[1771084188945,1.65110439,2087.6,2087.1,1.19779691]
[1771084192361,0.45355697,2087.6,2087.1,1.19779691]
[1771084193057,1.1986206,2087.7,2087.1,1.19779691]
[1771084193264,1.1986206,2087.7,2087.1,1.68205422]
[1771084193765,1.65217757,2087.7,2087.1,1.68205422]
[1771084198343,1.65217757,2087.7,2087.1,0.48425731]
[1771084198566,0.45355697,2087.6,2087.0,1.68214591]
[1771084200740,1.65111784,2087.6,2087.0,1.1978886]
[1771084201872,0.0011,2087.7,2087.1,0.48772028]
[1771084203653,0.0011,2087.7,2087.2,1.6854972]
[1771084204554,0.0011,2087.7,2087.2,1.19777692]
[1771084208893,0.0011,2087.7,2087.1,1.68550917]
[1771084213399,0.0011,2087.7,2087.1,1.19778889]
[1771084213601,0.0011,2087.7,2087.2,0.48772028]
[1771084213805,0.0011,2087.7,2087.3,1.19771954]
[1771084217370,0.0011,2087.7,2087.4,0.48772028]
[1771084219482,0.0011,2087.7,2087.4,1.68533412]
[1771084219803,0.0011,2087.7,2087.4,1.68538243]
[1771084220506,0.0011,2087.7,2087.4,1.19766215]
[1771084223980,0.0011,2087.7,2087.4,1.68538243]
[1771084224992,0.0011,2087.9,2087.4,1.68538243]
[1771084226311,0.0011,2087.9,2087.5,0.48772028]
[1771084227021,0.0011,2087.9,2087.6,1.19754742]
[1771084234317,0.0011,2087.9,2087.4,1.66318294]
[1771084240699,0.0011,2087.9,2087.4,1.19766216]
[1771084241300,0.47912011,2087.9,2087.4,1.19766216]
[1771084242528,1.67650135,2087.9,2087.4,1.19766216]
[1771084243333,0.47912011,2087.9,2087.4,1.19766216]
[1771084243528,0.0011,2087.9,2087.4,1.19766216]
[1771084244312,0.0011,2087.9,2087.0,3.82]
[1771084244313,0.47802011,2087.5,2087.0,1.19789171]
[1771084244518,0.0011,2087.9,2087.3,0.47480038]
[1771084248228,0.0011,2087.9,2087.5,0.47480038]
[1771084248428,0.0011,2087.9,2087.6,1.861]
[1771084249127,0.47912011,2087.9,2087.3,1.19767856]
[1771084249316,0.47912011,2087.9,2087.4,1.861]
[1771084249524,0.47802011,2087.6,2087.0,0.863]
[1771084249846,0.47802011,2087.6,2087.0,0.001]
[1771084250133,0.47802011,2087.4,2087.0,0.001]
[1771084250729,1.19768894,2087.4,2087.0,0.001]
[1771084250931,7.62727765,2087.7,2087.0,0.001]
[1771084251141,0.47802011,2087.6,2087.0,0.001]
[1771084251850,0.47802011,2087.4,2087.0,0.001]
[1771084252027,0.47802011,2087.6,2087.0,0.001]
[1771084252201,3.29249839,2087.9,2087.0,0.47580038]
[1771084252406,0.47802011,2087.8,2087.0,0.47580038]
[1771084253034,0.47802011,2087.8,2087.1,1.19783431]
[1771084253225,0.47802011,2087.8,2087.2,0.47480038]
[1771084254243,0.025053,2087.9,2087.2,0.47480038]
[1771084254412,0.50307311,2087.9,2087.2,0.47480038]
[1771084254812,0.50307311,2087.9,2087.3,0.47480038]
[1771084255240,0.50307311,2087.9,2087.4,1.19766216]
[1771084255842,0.025053,2087.9,2087.4,1.67246254]
[1771084256566,0.47802011,2087.8,2087.3,1.1976748]
[1771084257055,0.025053,2087.9,2087.3,1.67247518]
[1771084257251,0.025053,2087.9,2087.4,0.47480038]
[1771084259319,0.0011,2088.0,2087.5,0.47480038]
[1771084260432,0.47912011,2088.0,2087.6,1.861]
[1771084261426,0.47912011,2088.0,2087.7,1.19749006]
[1771084261830,0.0011,2088.0,2087.7,1.19749006]
[1771084262960,0.0011,2088.0,2087.6,6.6511795]
[1771084262961,0.0011,2088.0,2087.6,3.05850272]
[1771084264364,0.0011,2088.0,2087.6,1.861]
[1771084264534,0.47800904,2087.9,2087.3,1.19767066]
[1771084264734,0.47800904,2087.9,2087.2,3.06073293]
[1771084265539,0.47800904,2087.7,2087.2,1.863]
[1771084266244,0.0011,2088.0,2087.0,1.19888762]
[1771084266245,0.47800904,2087.5,2087.0,1.19888762]
[1771084266539,0.47800904,2087.4,2087.0,1.19888762]
[1771084267265,0.47800904,2087.4,2087.0,0.001]
[1771084267781,0.47800904,2087.3,2087.0,0.001]
[1771084269044,0.47800904,2087.2,2087.0,0.001]
[1771084270171,0.47800904,2087.5,2087.0,0.001]
[1771084270353,1.67561641,2087.5,2087.0,0.001]
[1771084270674,0.47800904,2087.4,2087.0,0.001]
[1771084274172,1.67567197,2087.4,2087.0,0.001]
[1771084274477,0.47800904,2087.3,2087.0,0.001]
[1771084275050,1.67577396,2087.3,2087.0,0.001]
[1771084275748,0.47800904,2087.2,2086.8,0.001]
[1771084277995,0.47800904,2087.1,2086.8,0.001]
[1771084278203,0.47800904,2087.1,2086.7,0.001]
[1771084278484,0.47800904,2087.0,2086.7,0.001]
[1771084279460,0.47800904,2087.0,2086.5,0.001]
[1771084280566,1.67595815,2086.9,2086.5,0.001]
[1771084280970,8.10865792,2087.1,2086.5,0.001]
[1771084281171,0.47800904,2087.0,2086.5,0.001]
[1771084283571,0.47800904,2086.8,2086.5,0.001]
[1771084285507,0.47800904,2086.8,2086.4,0.001]
[1771084285867,0.47800904,2086.7,2086.4,0.001]
[1771084286707,0.47800904,2086.6,2086.3,0.001]
[1771084287781,0.47800904,2086.6,2086.2,0.001]
[1771084287977,0.47800904,2086.4,2086.2,0.001]
[1771084288190,0.47800904,2086.4,2086.0,0.001]
[1771084288625,2.08600904,2086.4,2086.0,0.001]
[1771084288785,0.47800904,2086.3,2086.0,0.001]
[1771084291313,1.608,2086.4,2086.0,0.001]
[1771084291715,1.69463056,2086.5,2086.0,0.001]
[1771084292012,1.61,2086.5,2086.0,0.45697104]
[1771084292216,2.8081824,2086.5,2086.0,1.19941793]
[1771084292404,0.49642486,2086.4,2086.0,0.001]
[1771084293018,0.49642486,2086.4,2086.0,1.19945338]
[1771084295022,1.61,2086.5,2086.0,0.45697104]
[1771084296191,1.19809447,2086.7,2086.0,0.45697104]
[1771084296490,2.81009447,2086.7,2086.0,0.45697104]
[1771084297115,2.81009447,2086.7,2086.1,1.65437955]
[1771084297813,2.81007312,2086.7,2086.1,1.65437955]
[1771084298425,3.30649798,2086.7,2086.1,1.65437955]
[1771084298620,0.49642486,2086.6,2086.0,1.1994241]
[1771084299220,0.49642486,2086.5,2086.0,1.1994241]
[1771084299589,6.9292093,2086.5,2086.0,0.001]
[1771084300017,0.49642486,2086.5,2086.0,0.001]
[1771084304437,1.69465202,2086.5,2086.0,0.001]
[1771084305015,0.47652697,2086.4,2086.0,0.001]
[1771084308149,0.47652697,2086.3,2086.0,0.001]
[1771084308447,1.19827494,2086.4,2086.0,0.001]
[1771084308749,1.67480191,2086.4,2086.0,0.001]
[1771084309055,0.47652697,2086.3,2085.8,1.9296967]
[1771084309261,0.47652697,2086.3,2085.6,0.001]
[1771084309262,6.90931141,2086.0,2085.5,0.001]
[1771084309463,0.47652697,2085.8,2085.5,0.001]
[1771084309767,2.09852697,2085.9,2085.2,0.48541527]
[1771084310170,3.29705609,2085.9,2085.3,1.19886826]
[1771084310463,1.622,2086.0,2085.4,0.48641527]
[1771084310668,2.09852697,2086.0,2085.4,0.001]
[1771084310868,0.47652697,2085.9,2085.4,0.001]
[1771084312569,1.67508188,2085.9,2085.4,0.001]
[1771084312882,1.622,2086.0,2085.4,0.48641527]
[1771084313232,2.8224279,2086.1,2085.4,0.48641527]
[1771084313431,1.624,2086.1,2085.4,0.48641527]
[1771084313852,0.3862659,2086.2,2085.4,0.48641527]
[1771084314045,2.0102659,2086.2,2085.4,0.48641527]
[1771084314661,2.0102659,2086.2,2085.6,0.48541527]
[1771084315764,0.3862659,2086.2,2085.6,0.48541527]
[1771084315962,3.29879281,2086.4,2085.6,0.48541527]
[1771084316785,3.29879281,2086.4,2085.7,1.19863834]
[1771084316961,3.29879281,2086.4,2085.7,1.68405361]
[1771084318903,2.10052697,2086.4,2085.8,0.48541527]
[1771084319184,2.82224794,2086.4,2085.7,1.19863834]
[1771084319388,0.47652697,2086.3,2085.7,1.19863834]
[1771084319686,0.47652697,2086.3,2085.6,1.68408401]
[1771084319891,0.47652697,2086.3,2085.5,1.19870745]
[1771084320266,0.47652697,2086.1,2085.5,1.19870745]
[1771084320792,0.47652697,2086.1,2085.4,1.68518366]
[1771084320961,0.47652697,2085.9,2085.4,0.001]
[1771084321986,1.625,2086.0,2085.5,0.48257558]
[1771084322185,2.82439419,2086.2,2085.5,0.48257558]
[1771084322890,1.626,2086.2,2085.6,1.68127139]
[1771084323062,1.626,2086.2,2085.7,0.48257558]
[1771084323270,2.82435253,2086.2,2085.7,0.48257558]
[1771084323576,3.31438409,2086.2,2085.5,1.19871629]
[1771084323969,3.31438409,2086.2,2085.5,1.68129187]
[1771084324595,0.49003156,2086.1,2085.5,1.68129187]
[1771084324892,1.68844537,2086.1,2085.5,1.68129187]
[1771084325600,1.19841381,2086.1,2085.5,1.68129187]
[1771084325901,0.49003156,2086.1,2085.5,1.19871629]
[1771084327379,0.49003156,2086.1,2085.5,0.48257558]
[1771084328400,2.82435294,2086.2,2085.5,0.48257558]
[1771084328598,3.3143845,2086.2,2085.5,0.48257558]
[1771084328974,2.11603156,2086.2,2085.5,0.48257558]
[1771084329798,1.626,2086.2,2085.6,1.68127139]
[1771084329999,0.49003156,2086.3,2085.6,1.68127139]
[1771084330187,1.68937401,2086.4,2085.7,0.48257558]
[1771084330498,0.0011,2086.4,2085.7,0.48257558]
[1771084331905,0.0011,2086.4,2085.9,0.48257558]
[1771084332397,0.49113156,2086.4,2085.8,1.68115646]
[1771084332592,0.49113156,2086.4,2085.8,1.19858088]
[1771084334305,1.68937084,2086.4,2085.8,1.19858088]
[1771084334517,0.0011,2086.4,2085.9,0.48257558]
[1771084336176,0.0011,2086.4,2085.8,1.68115646]
[1771084336674,0.49113156,2086.4,2085.8,1.19858088]
[1771084337098,0.49113156,2086.4,2085.8,1.68115646]
[1771084337400,0.49113156,2086.4,2085.8,1.19858088]
[1771084338980,0.49003156,2086.3,2085.7,4.79440977]
[1771084340929,1.68836756,2086.3,2085.7,4.79440977]
[1771084341629,1.68836756,2086.3,2085.7,1.19863834]
[1771084343995,0.49003156,2086.3,2085.7,1.19863834]
[1771084345000,0.49003156,2086.3,2085.7,1.68121392]
[1771084345439,0.49003156,2086.2,2085.5,5.27757473]
[1771084345937,0.49003156,2086.2,2085.6,0.48257558]
[1771084347016,1.19933941,2086.4,2085.6,0.48257558]
[1771084347017,1.68937097,2086.4,2085.6,0.48257558]
[1771084348042,0.49113156,2086.4,2085.7,1.68121392]
[1771084348247,0.0011,2086.4,2085.8,0.48257558]
[1771084352751,0.0011,2086.4,2085.9,1.19852341]
[1771084354448,0.0011,2086.4,2085.9,1.69412479]
[1771084355731,0.46365754,2086.4,2085.5,4.79499118]
[1771084356047,0.46365754,2086.4,2085.5,5.29059256]
[1771084356351,0.46365754,2086.4,2085.6,0.49560138]
[1771084357552,0.46255754,2086.2,2085.7,1.19863834]
[1771084358052,0.46255754,2086.2,2085.6,1.69425591]
[1771084358250,0.46255754,2086.2,2085.6,1.19865453]
[1771084360253,5.25672532,2086.4,2085.6,1.69425591]
[1771084360436,1.19833925,2086.3,2085.7,0.49560138]
[1771084360756,1.67915212,2086.3,2085.7,0.49560138]
[1771084361458,0.48081287,2086.2,2085.4,3.53753181]
[1771084361654,0.48081287,2086.2,2085.4,1.68253181]
[1771084361831,0.48081287,2086.2,2085.4,1.1997648]
[1771084362433,0.48081287,2086.0,2085.4,0.001]
[1771084364638,0.48081287,2085.8,2085.4,0.001]
[1771084367851,1.67939386,2085.8,2085.4,0.001]
[1771084368462,0.48081287,2085.7,2085.4,0.001]
[1771084369866,1.67950868,2085.6,2085.4,0.001]
[1771084370288,4.79387194,2086.0,2085.4,0.001]
[1771084370289,1.67927883,2086.0,2085.4,0.001]
[1771084370441,0.48081287,2085.9,2085.4,0.001]
[1771084371950,1.67939375,2085.8,2085.4,0.001]
[1771084375167,0.48081287,2085.7,2085.4,0.001]
[1771084376666,0.48081287,2085.7,2085.2,0.001]
[1771084377082,1.67950868,2085.6,2085.2,0.001]
[1771084378482,0.48081287,2085.5,2085.2,0.001]
[1771084380568,1.67959316,2085.5,2085.2,0.001]
[1771084381581,0.48081287,2085.5,2085.2,0.001]
[1771084381883,1.67957009,2085.5,2085.2,0.001]
[1771084382955,0.46299555,2085.4,2085.1,0.001]
[1771084383562,0.46299555,2085.4,2084.7,1.19516669]
[1771084384090,1.19875722,2085.5,2084.7,1.19516669]
[1771084384091,1.19875722,2085.5,2084.8,0.45368038]
[1771084384382,1.19875722,2085.5,2084.9,0.45468038]
[1771084384553,1.19875722,2085.5,2085.0,1.19904076]
[1771084384752,6.9008012,2085.6,2085.0,1.19904076]
[1771084384753,1.643,2085.6,2085.1,0.45368038]
[1771084385683,1.66168558,2085.7,2085.1,0.45368038]
[1771084385684,3.30568558,2085.7,2085.1,0.45368038]
[1771084385852,0.46299555,2085.6,2085.0,1.19904076]
[1771084386283,2.84269003,2085.7,2085.1,0.45368038]
[1771084387355,3.30568558,2085.7,2085.1,1.65265737]
[1771084387680,0.46299555,2086.1,2085.3,0.45368038]
[1771084388565,1.1,2085.9,2085.3,0.45368038]
[1771084389578,1.1,2085.9,2085.4,1.19881077]
[1771084390583,1.56299555,2085.9,2085.4,1.19881077]
[1771084390882,1.1,2085.9,2085.5,0.45368038]
[1771084391581,1.1,2085.9,2085.5,1.65242536]
[1771084393593,1.1,2085.9,2085.3,0.45368038]
[1771084394395,2.29852995,2085.9,2085.3,0.45368038]
[1771084394794,1.1,2085.9,2085.3,0.45368038]
[1771084395527,0.46299555,2085.8,2085.1,0.45368038]
[1771084395695,0.46299555,2085.8,2085.1,1.65263076]
[1771084396375,0.46299555,2085.8,2085.2,0.45368038]
[1771084397878,1.66161937,2085.8,2085.3,1.19886826]
[1771084398700,1.66161937,2085.8,2085.2,1.65256405]
[1771084400122,0.46299555,2085.7,2085.1,0.45368038]
[1771084400486,0.46299555,2085.7,2085.0,1.19904076]
[1771084400688,0.46299555,2085.7,2085.0,1.65272114]
[1771084401399,0.46299555,2085.7,2085.0,1.19904076]
[1771084402117,1.66169136,2085.6,2085.0,1.19904076]
[1771084403801,1.19868169,2085.7,2085.1,0.45368038]
[1771084404002,1.6616193,2085.8,2085.1,0.45368038]
[1771084405429,0.46299555,2085.7,2085.1,1.65261819]
[1771084406718,0.46299555,2085.7,2085.1,1.19893781]
[1771084406917,1.66151896,2085.9,2085.1,1.19893781]
[1771084407090,1.19852341,2085.9,2085.2,0.45368038]
[1771084407286,0.46299555,2085.8,2085.2,0.45368038]
[1771084407593,0.46299555,2085.7,2085.2,1.19888071]
[1771084407993,0.46299555,2085.7,2085.1,1.19895232]
[1771084408795,0.46299555,2085.7,2085.0,0.45368038]
[1771084409118,0.46299555,2085.7,2085.0,1.65271512]
[1771084409518,1.66192131,2085.2,2084.7,0.001]
[1771084409687,0.46299555,2085.2,2084.7,1.20021159]
[1771084410089,1.66184029,2085.4,2084.7,1.20021159]
[1771084410536,0.46299555,2085.3,2084.7,1.65389197]
[1771084411114,0.46299555,2085.3,2084.7,1.20021159]
[1771084411818,1.67526495,2085.2,2084.7,0.001]
[1771084413090,0.47633919,2085.1,2084.7,0.001]
[1771084414120,0.47633919,2085.0,2084.7,0.001]
[1771084416337,0.47633919,2085.2,2084.7,0.001]
[1771084417715,1.646,2085.3,2084.7,0.46460595]
[1771084418051,2.12233919,2085.3,2084.7,0.46460595]
[1771084418247,2.12233919,2085.3,2084.7,0.001]
[1771084418248,0.47633919,2085.2,2084.7,0.001]
[1771084421744,0.45590016,2085.0,2084.7,0.001]
[1771084421947,0.45590016,2085.1,2084.7,0.001]
[1771084422834,2.84490447,2085.3,2084.7,0.001]
[1771084423122,2.84487618,2085.3,2084.7,0.001]
[1771084423318,1.646,2085.3,2084.7,0.48660553]
[1771084423935,1.1,2085.3,2084.7,0.48660553]
[1771084424132,1.65463662,2085.6,2084.7,0.48660553]
[1771084424317,4.79459836,2085.7,2084.7,0.48660553]
[1771084424318,2.84467965,2085.7,2084.7,0.48660553]
[1771084424846,3.30057981,2085.7,2084.7,0.48660553]
[1771084425247,1.65457981,2085.7,2084.9,0.48560553]
[1771084425443,2.10090016,2085.7,2084.9,0.48560553]
[1771084425648,3.29954648,2085.7,2084.9,0.48560553]
[1771084426058,1.645,2085.7,2084.9,0.48560553]
[1771084426230,1.19857465,2085.9,2084.9,0.48560553]
[1771084426436,2.84357465,2085.9,2084.9,0.48560553]
[1771084426939,1.19955035,2086.1,2085.1,0.48560553]
[1771084427357,1.65545051,2086.1,2085.3,0.48560553]
[1771084428741,0.45700016,2086.1,2085.3,0.48560553]
[1771084429057,1.1,2086.0,2085.3,0.48560553]
[1771084429436,1.1,2086.0,2085.5,0.48560553]
[1771084431127,0.0011,2086.1,2085.5,0.48560553]
[1771084431369,0.0011,2086.1,2085.8,1.68418641]
[1771084431670,0.0011,2086.1,2085.9,0.48560553]
[1771084432677,0.0011,2086.1,2085.7,1.6842023]
[1771084433128,1e-08,2086.6,2086.1,0.48560553]
[1771084433559,1e-08,2086.6,2086.2,1.19835106]
[1771084433741,1e-08,2086.6,2086.3,0.48560553]
[1771084433943,0.0011,2086.9,2086.3,0.48560553]
[1771084434162,0.0011,2086.9,2086.5,0.48560553]
[1771084434564,0.0011,2087.0,2086.5,0.48560553]
[1771084435436,0.0011,2087.0,2086.6,1.68372687]
[1771084441055,0.45700016,2087.0,2086.4,1.19819148]
[1771084443146,1.64798267,2086.9,2086.3,1.19829362]
[1771084444267,0.45003356,2086.9,2086.3,1.19829362]
[1771084444683,1.19903641,2087.0,2086.3,1.65395847]
[1771084444988,1.19903641,2087.0,2086.4,0.45566485]
[1771084444989,0.0011,2087.0,2086.4,0.45566485]
[1771084445293,0.0011,2087.0,2086.5,1.19817876]
[1771084446654,0.0011,2087.0,2086.4,0.45566485]
[1771084446893,0.0011,2087.0,2086.4,1.6538965]
[1771084447192,0.0011,2087.0,2086.5,0.45566485]
[1771084450864,0.0011,2087.0,2086.5,1.6537894]
[1771084451161,0.0011,2087.0,2086.5,1.19812455]
[1771084452877,0.0011,2087.0,2086.4,4.79282522]
[1771084453194,0.45113356,2087.0,2086.4,1.19823619]
[1771084455601,1.64905063,2087.0,2086.4,1.19823619]
[1771084460213,1.64905063,2087.0,2086.2,3.04030738]
[1771084460214,0.45003356,2086.9,2086.2,3.04030738]
[1771084460416,0.45003356,2086.9,2086.2,1.19830738]
[1771084462181,1.19901707,2087.0,2086.3,0.45566485]
[1771084462408,2.08613356,2087.0,2086.4,1.19823619]
[1771084465541,1.19794911,2086.9,2086.4,1.19823619]
[1771084469237,1.64798267,2086.9,2086.3,1.65392345]
[1771084469939,1.64798267,2086.9,2086.3,1.1982586]
[1771084472940,0.49356718,2086.8,2086.3,1.1982586]
[1771084474724,0.49356718,2086.7,2086.2,4.79329324]
[1771084477027,1.19804589,2086.8,2086.2,4.79329324]
[1771084477348,1.69161307,2086.8,2086.2,4.79329324]
[1771084483056,1.69161307,2086.8,2086.2,0.46070344]
[1771084485556,1.69161307,2086.8,2086.2,1.65899962]
[1771084486526,0.46880399,2086.7,2086.2,1.19829618]
[1771084486732,0.46880399,2086.7,2086.0,3.04442203]
[1771084487833,1.66692533,2086.6,2086.0,3.04442203]
[1771084488665,0.46880399,2086.5,2086.0,1.19942203]
[1771084489167,0.46880399,2086.5,2086.0,0.001]
[1771084490635,1.66702794,2086.5,2086.0,0.001]
[1771084493465,0.46880399,2086.4,2086.0,0.001]
[1771084496570,1.19822395,2086.5,2086.0,0.001]
[1771084497075,0.46880399,2086.4,2086.0,0.001]
[1771084498073,0.46880399,2086.1,2085.8,0.001]
[1771084498447,1.19846596,2086.0,2085.7,0.001]
[1771084498647,0.46880399,2085.9,2085.7,0.001]
[1771084499046,11.22786369,2086.2,2085.7,0.46170344]
[1771084499249,1.653,2086.3,2085.7,0.46170344]
[1771084502483,1.19835106,2086.2,2085.7,0.46170344]
[1771084502647,1.64976787,2086.2,2085.7,0.001]
[1771084502851,0.45141681,2086.1,2085.7,0.001]
[1771084503895,1.19835106,2086.2,2085.4,0.001]
[1771084503896,0.45141681,2085.7,2085.4,0.001]
[1771084504189,0.45141681,2085.5,2085.1,0.001]
[1771084504357,1.655,2085.7,2085.1,0.001]
[1771084504557,3.30499769,2085.8,2085.2,0.47376943]
[1771084504756,2.85358088,2085.8,2085.2,0.47376943]
[1771084505388,1.19858088,2085.8,2085.3,0.47376943]
[1771084505758,2.85456435,2085.9,2085.3,0.47376943]
[1771084506488,5.24492199,2086.2,2085.4,0.47376943]
[1771084506654,2.85440851,2086.1,2085.4,0.47376943]
[1771084507792,1.19838901,2086.2,2085.4,0.47376943]
[1771084508478,1.64980582,2086.2,2085.5,1.67252272]
[1771084508885,2.10841681,2086.7,2085.8,0.47376943]
[1771084510494,0.45141681,2086.7,2085.8,0.47376943]
[1771084510691,2.8540387,2086.8,2085.9,1.19852341]
[1771084510891,2.85401409,2086.8,2086.0,0.47376943]
[1771084511096,1.19801409,2086.8,2086.0,0.47376943]
[1771084511474,1.43791653,2086.9,2086.0,0.47376943]
[1771084512306,0.0011,2086.5,2086.0,0.47376943]
[1771084512997,0.0011,2086.5,2086.1,1.19840851]
[1771084514280,0.0011,2086.5,2086.1,1.67217794]
[1771084517205,0.0011,2086.5,2086.1,1.19840851]
[1771084517911,0.0011,2086.5,2086.0,5.26763275]
[1771084521805,0.45251681,2086.5,2085.9,3.51228064]
[1771084522002,0.0011,2086.5,2086.0,0.47376943]
[1771084522506,1.19931327,2086.5,2086.0,0.47376943]
[1771084522699,0.0011,2086.5,2086.0,0.47376943]
[1771084524022,0.0011,2086.5,2086.1,1.19840851]
[1771084524627,0.0011,2086.5,2086.0,1.67219982]
[1771084525728,0.0011,2086.5,2086.0,1.19843039]
[1771084526230,0.45208642,2086.5,2086.0,1.19843039]
[1771084527735,0.45208642,2086.5,2085.9,1.19847945]
[1771084528143,1.65031022,2086.5,2085.9,1.19847945]
[1771084528645,0.45098642,2086.4,2085.8,3.50012901]
[1771084529020,0.45098642,2086.4,2085.8,1.65412901]
[1771084529545,0.0011,2086.5,2085.9,0.45554892]
[1771084529726,0.0011,2086.5,2086.0,6.43673298]
[1771084529929,0.0011,2086.7,2086.2,6.8922819]
[1771084530143,0.0011,2086.8,2086.3,1.65384254]
[1771084530351,0.0011,2086.8,2086.4,0.45554892]
[1771084532439,0.0011,2086.8,2086.5,1.19817876]
[1771084532754,0.0011,2086.8,2086.5,1.6950511]
[1771084534753,0.0011,2086.8,2086.5,0.49687234]
[1771084534955,0.0011,2086.8,2086.4,1.19819228]
[1771084535157,0.0011,2086.8,2086.3,1.69513406]
[1771084537355,0.0011,2086.8,2086.4,0.49687234]
[1771084538340,0.0011,2086.8,2086.3,1.19826172]
[1771084538540,0.0011,2086.8,2086.3,7.6349947]
[1771084539862,0.0011,2086.8,2086.3,8.13186704]
[1771084540059,0.0011,2087.0,2086.5,6.93360532]
[1771084541337,1.19899646,2087.0,2086.5,6.93360532]
[1771084542047,1.19899646,2087.0,2086.5,6.43673298]
[1771084542342,0.47998241,2086.9,2086.3,7.63500488]
[1771084542542,0.47998241,2086.9,2086.2,1.19830505]
[1771084542746,0.47998241,2086.9,2086.2,1.857]
[1771084543355,0.47998241,2086.7,2085.9,1.857]
[1771084544156,0.47998241,2086.5,2085.9,1.857]
[1771084544970,1.19812134,2086.6,2085.9,3.52803021]
[1771084545175,1.67810375,2086.6,2085.9,3.52803021]
[1771084546248,0.47998241,2086.5,2085.9,3.52803021]
[1771084546771,0.47998241,2086.7,2086.0,0.47251065]
[1771084546943,4.79228461,2086.8,2086.0,0.47251065]
[1771084547142,5.27226702,2086.8,2086.0,0.47251065]
[1771084548369,5.27226702,2086.8,2086.1,1.19840851]
[1771084549174,1.19800651,2086.8,2086.2,0.47251065]
[1771084550680,1.67798892,2086.8,2086.2,1.67086046]
[1771084551178,0.47998241,2086.7,2086.2,1.19834981]
[1771084551877,0.47998241,2086.7,2086.1,7.63509609]
[1771084552376,0.47998241,2086.7,2086.1,8.10760674]
[1771084554972,1.19812134,2086.6,2086.1,8.10760674]
[1771084555977,1.67809027,2086.7,2086.1,8.10760674]
[1771084557275,1.67809027,2086.7,2086.1,8.10764811]
[1771084557471,1.19810786,2086.7,2086.1,8.10764811]
[1771084557675,1.19810786,2086.7,2086.2,0.47251065]
[1771084560596,1.19810786,2086.7,2086.2,1.67084972]
[1771084561402,1.70198881,2086.8,2086.2,1.67084972]
[1771084564596,0.023967,2086.8,2086.3,6.91352301]
[1771084565400,1.22197898,2086.8,2086.3,6.91352301]
[1771084566411,0.023967,2086.8,2086.4,0.47679003]
[1771084566573,0.0011,2087.0,2086.5,6.91352301]
[1771084567303,0.0011,2087.1,2086.6,0.47679003]
[1771084567708,0.0011,2087.1,2086.7,7.6347969]
[1771084567882,0.0011,2087.2,2086.7,7.6347969]
[1771084568088,0.0011,2087.4,2086.9,6.91352301]
[1771084568410,0.0011,2087.6,2087.1,6.91352301]
[1771084568607,0.0011,2087.8,2087.4,0.47679003]
[1771084568807,3.30152662,2088.0,2087.5,6.43673298]
[1771084568808,0.0011,2088.0,2087.5,6.43673298]
[1771084568978,0.0011,2088.1,2087.5,6.91352301]
[1771084569174,1.19836069,2088.1,2087.5,6.91352301]
[1771084569516,0.0011,2088.1,2087.5,6.91352301]
[1771084569686,0.0011,2088.1,2087.7,1.19749006]
[1771084570003,0.0011,2088.1,2087.8,0.47679003]
[1771084570176,0.0011,2088.1,2087.7,6.43673298]
[1771084570605,0.45518521,2088.1,2087.4,0.47679003]
[1771084570807,0.45518521,2088.1,2087.5,1.873]
[1771084571813,1.197318,2088.0,2087.5,1.873]
[1771084571977,1.197318,2088.0,2087.5,3.54739051]
[1771084572377,0.0011,2088.1,2087.6,0.47679003]
[1771084573597,1.19837351,2088.1,2087.6,0.47679003]
[1771084574195,0.0011,2088.1,2087.7,0.47679003]
[1771084574474,0.0011,2088.1,2087.8,0.47679003]
[1771084574878,0.0011,2088.2,2087.8,0.47679003]
[1771084575111,0.0011,2088.3,2087.8,0.47679003]
[1771084575402,0.0011,2088.3,2088.0,0.47679003]
[1771084576526,0.0011,2088.5,2088.1,0.47679003]
[1771084576708,0.0011,2088.5,2088.1,6.42576847]
[1771084576915,0.0011,2088.5,2088.0,1.19730352]
[1771084576916,0.0011,2088.5,2088.2,0.47679003]
[1771084577222,1.19690399,2088.8,2088.1,0.47679003]
[1771084577429,4.82809335,2088.9,2088.0,1.19730352]
[1771084577430,0.0407827,2088.9,2088.3,0.47679003]
[1771084577989,1.19659999,2089.3,2088.3,0.47679003]
[1771084578185,6.43213006,2089.4,2088.5,0.47679003]
[1771084578186,1.646,2089.4,2088.5,0.47679003]
[1771084578486,1.19644553,2089.6,2088.7,0.47679003]
[1771084578710,1.65047621,2089.7,2088.7,0.47679003]
[1771084579285,1.19631527,2089.8,2088.7,0.47679003]
[1771084579883,1.65036249,2089.9,2088.9,0.47679003]
[1771084580083,1.19627728,2089.9,2088.9,0.47679003]
[1771084580382,1.19627728,2089.9,2089.1,0.47679003]
[1771084580583,1.19627728,2089.9,2089.2,0.47679003]
[1771084580805,1.65036249,2089.9,2089.2,0.47679003]
[1771084581596,1.19627728,2089.9,2089.2,0.47679003]
[1771084582511,0.45408521,2090.0,2089.2,0.47679003]
[1771084582808,1.19619816,2090.0,2089.2,0.47679003]
[1771084583215,1.19615726,2090.1,2089.2,0.47679003]
[1771084584210,0.45408521,2090.0,2089.2,0.47679003]
[1771084584608,0.45408521,2090.0,2089.3,1.67336304]
[1771084584609,1.19622948,2089.9,2089.3,1.67336304]
[1771084584803,1.19622948,2089.9,2089.4,0.47679003]
[1771084585924,1.19622948,2089.9,2089.1,1.68764857]
[1771084585925,0.45408521,2089.8,2089.1,1.68764857]
[1771084586327,1.19622948,2089.9,2089.1,2.1644386]
[1771084586510,1.19622948,2089.9,2089.3,1.19657301]
[1771084586823,1.19622948,2089.9,2089.3,1.67336304]
[1771084587047,4.78448755,2090.1,2089.4,0.47679003]
[1771084587938,0.45408521,2090.0,2089.2,0.47679003]
[1771084588127,0.45408521,2090.0,2089.1,0.491]
[1771084588301,0.45408521,2090.0,2089.1,1.68768454]
[1771084588502,0.45408521,2090.0,2089.1,0.491]
[1771084588702,0.45408521,2089.8,2089.0,3.19749107]
[1771084589605,0.45408521,2089.8,2089.1,0.47679003]
[1771084589803,0.45408521,2089.8,2089.0,1.524]
[1771084590016,0.45408521,2089.8,2089.0,3.19752015]
[1771084590220,1.19622948,2089.9,2089.1,0.47679003]
[1771084590618,1.65031469,2089.9,2089.1,0.47679003]
[1771084590802,1.65031469,2089.9,2089.1,1.67347731]
[1771084591000,1.19622948,2089.9,2089.1,1.67347731]
[1771084591204,0.45408521,2089.8,2089.1,0.47679003]
[1771084591426,0.45408521,2089.8,2088.7,1.66551546]
[1771084591623,0.45408521,2089.8,2088.7,3.53151546]